[Event "Mitropa Online Cup Open 2021"]
[Site "Hybrid"]
[Date "2021.05.04"]
[Round "4.2"]
[White "Blohberger, Felix"]
[Black "Pechac, Jergus"]
[Result "1/2-1/2"]
[ECO "C54"]
[WhiteElo "2463"]
[BlackElo "2519"]
[Annotator "ChessBase"]
[PlyCount "47"]
[EventDate "2021.05.04"]
[EventType "team-tourn"]
[EventCountry "NET"]
[SourceTitle "playchess.com"]
[Source "ChessBase"]
[SourceQuality "1"]
[WhiteTeam "Austria"]
[BlackTeam "Slovakia"]
[WhiteTeamCountry "AUT"]
[BlackTeamCountry "SVK"]
[TimeControl "40/5400+30:1800+30"]

1. e4 {[%emt 0:00:00]} e5 {[%emt 0:00:05]} 2. Nf3 {[%emt 0:00:07]} Nc6 {[%emt 0:00:05]} 3. Bc4 {[%emt 0:00:08]} Bc5 {[%emt 0:00:06]} 4. c3 {[%emt 0:00:26]} Nf6 {[%emt 0:00:08]} 5. d4 {[%emt 0:00:18]} exd4 {[%emt 0:00:05]} 6. b4 {[%emt 0:00:47]} Bb6 {[%emt 0:00:21]} 7. e5 {[%emt 0:01:05]} Ne4 {[%emt 0:00:07]} 8. Bd5 {[%emt 0:00:32]} Nxc3 {[%emt 0:00:19]} 9. Nxc3 {[%emt 0:00:08]} dxc3 {[%emt 0:00:06]} 10. Bg5 {[%emt 0:00:07]} Ne7 {[%emt 0:00:07]} 11. O-O {[%emt 0:01:19]} h6 {[%emt 0:00:06]} 12. Bh4 {[%emt 0:00:15]} a5 {[%emt 0:00:05]} 13. Re1 {[%emt 0:04:51]} g5 {[%emt 0:16:31]} 14. Nxg5 {[%emt 0:01:33]} hxg5 {[%emt 0:01:35]} 15. Bxg5 {[%emt 0:00:09]} axb4 {[%emt 0:15:31]} 16. Qf3 {[%emt 0:17:44]} Rf8 {[%emt 0:02:44]} 17. Bc4 {[%emt 0:23:12]} Ra3 {[%emt 0:13:47]} 18. Qf6 {[%emt 0:23:14]} c2 {[%emt 0:02:00]} 19. Bxf7+ {[%emt 0:04:56]} Rxf7 {[%emt 0:00:15]} 20. Qh8+ {[%emt 0:00:03]} Rf8 {[%emt 0:00:03]} 21. Qh5+ {[%emt 0:00:02]} Rf7 {[%emt 0:00:02]} 22. Qh8+ {[%emt 0:00:02]} Rf8 {[%emt 0:00:03]} 23. Qh5+ {[%emt 0:00:02]} Rf7 {[%emt 0:00:01]} 24. Qh8+ {[%emt 0:00:03]} 1/2-1/2

[Event "Mitropa Online Cup Open 2021"]
[Site "Hybrid"]
[Date "2021.05.04"]
[Round "4.2"]
[White "Schwabeneder, Florian"]
[Black "Nayhebaver, Martin"]
[Result "1/2-1/2"]
[ECO "B25"]
[WhiteElo "2443"]
[BlackElo "2485"]
[Annotator "ChessBase"]
[PlyCount "98"]
[EventDate "2021.05.04"]
[EventType "team-tourn"]
[EventCountry "NET"]
[SourceTitle "playchess.com"]
[Source "ChessBase"]
[SourceQuality "1"]
[WhiteTeam "Austria"]
[BlackTeam "Slovakia"]
[WhiteTeamCountry "AUT"]
[BlackTeamCountry "SVK"]
[TimeControl "40/5400+30:1800+30"]

1. e4 {[%emt 0:00:00]} c5 {[%emt 0:00:19]} 2. Nc3 {[%emt 0:00:09]} d6 {[%emt 0:02:01]} 3. g3 {[%emt 0:00:44]} Nc6 {[%emt 0:01:05]} 4. Bg2 {[%emt 0:00:07]} g6 {[%emt 0:01:25]} 5. d3 {[%emt 0:00:39]} Bg7 {[%emt 0:00:22]} 6. Nge2 {[%emt 0:00:05]} Nf6 {[%emt 0:02:39]} 7. O-O {[%emt 0:05:39]} O-O {[%emt 0:01:45]} 8. h3 {[%emt 0:05:47]} Rb8 {[%emt 0:02:23]} 9. a4 {[%emt 0:01:57]} a6 {[%emt 0:03:22]} 10. f4 {[%emt 0:00:42]} Ne8 {[%emt 0:05:21]} 11. Nd5 {[%emt 0:16:18]} b5 {[%emt 0:04:51]} 12. axb5 {[%emt 0:00:44]} axb5 {[%emt 0:00:16]} 13. f5 {[%emt 0:10:00]} e6 {[%emt 0:05:10]} 14. Ne3 {[%emt 0:10:16]} Ne5 {[%emt 0:07:15]} 15. Nf4 {[%emt 0:06:25]} b4 {[%emt 0:03:34]} 16. h4 {[%emt 0:10:34]} Nc7 {[%emt 0:03:31]} 17. c3 {[%emt 0:08:07]} bxc3 {[%emt 0:04:24]} 18. bxc3 {[%emt 0:01:08]} Bb7 {[%emt 0:04:09]} 19. fxe6 {[%emt 0:02:46]} fxe6 {[%emt 0:04:30]} 20. Bh3 {[%emt 0:00:57]} Qe7 {[%emt 0:03:11]} 21. Rb1 {[%emt 0:03:55]} Ba6 {[%emt 0:06:04]} 22. Rxb8 {[%emt 0:01:37]} Rxb8 {[%emt 0:00:05]} 23. Rf2 {[%emt 0:01:07]} Bh6 {[%emt 0:20:47]} 24. Ng4 {[%emt 0:08:01]} Nxg4 {[%emt 0:03:41]} 25. Bxg4 {[%emt 0:00:33]} Bg7 {[%emt 0:04:01]} 26. Qc2 {[%emt 0:01:14]} Kh8 {[%emt 0:03:31]} 27. Be3 {[%emt 0:00:58]} d5 {[%emt 0:01:31]} 28. exd5 {[%emt 0:01:55]} exd5 {[%emt 0:00:06]} 29. Re2 {[%emt 0:00:09]} Qd6 {[%emt 0:00:15]} 30. Bf2 {[%emt 0:01:25]} Bc8 {[%emt 0:01:36]} 31. Bxc8 {[%emt 0:00:41]} Rxc8 {[%emt 0:00:02]} 32. Qb3 {[%emt 0:00:16]} Rd8 {[%emt 0:01:25]} 33. Qa3 {[%emt 0:00:48]} d4 {[%emt 0:00:35]} 34. cxd4 {[%emt 0:00:24]} Bxd4 {[%emt 0:00:05]} 35. Bxd4+ {[%emt 0:00:23]} Qxd4+ {[%emt 0:00:08]} 36. Kg2 {[%emt 0:00:31]} Rf8 {[%emt 0:01:56]} 37. Re4 {[%emt 0:00:17]} Qd6 {[%emt 0:00:07]} 38. Qc3+ {[%emt 0:00:47]} Kg8 {[%emt 0:00:05]} 39. Qc4+ {[%emt 0:00:36]} Kh8 {[%emt 0:00:31]} 40. Qc3+ {[%emt 0:00:00]} Kg8 {[%emt 0:00:00]} 41. Re5 {[%emt 0:11:15]} Rf5 {[%emt 0:08:03]} 42. Rxf5 {[%emt 0:00:29]} gxf5 {[%emt 0:00:08]} 43. Qb3+ {[%emt 0:00:18]} Kg7 {[%emt 0:02:08]} 44. Qb7 {[%emt 0:00:45]} Kh6 {[%emt 0:01:30]} 45. Qc8 {[%emt 0:01:00]} Nd5 {[%emt 0:00:41]} 46. Qe6+ {[%emt 0:02:46]} Qxe6 {[%emt 0:00:07]} 47. Nxe6 {[%emt 0:00:04]} c4 {[%emt 0:00:05]} 48. dxc4 {[%emt 0:00:28]} Ne3+ {[%emt 0:00:07]} 49. Kf3 {[%emt 0:00:12]} Nxc4 {[%emt 0:00:03]} 1/2-1/2

[Event "Mitropa Online Cup Open 2021"]
[Site "Hybrid"]
[Date "2021.05.04"]
[Round "4.3"]
[White "Travadon, Loic"]
[Black "Babula, Vlastimil"]
[Result "0-1"]
[ECO "B47"]
[WhiteElo "2414"]
[BlackElo "2559"]
[Annotator "ChessBase"]
[PlyCount "86"]
[EventDate "2021.05.04"]
[EventType "team-tourn"]
[EventCountry "NET"]
[SourceTitle "playchess.com"]
[Source "ChessBase"]
[SourceQuality "1"]
[WhiteTeam "France"]
[BlackTeam "Czech Republic"]
[WhiteTeamCountry "FRA"]
[BlackTeamCountry "CZE"]
[TimeControl "40/5400+30:1800+30"]

1. e4 {[%emt 0:00:00]} c5 {[%emt 0:00:17]} 2. Nf3 {[%emt 0:00:06]} e6 {[%emt 0:00:25]} 3. d4 {[%emt 0:00:06]} cxd4 {[%emt 0:00:13]} 4. Nxd4 {[%emt 0:00:06]} Nc6 {[%emt 0:00:40]} 5. Nc3 {[%emt 0:00:07]} Qc7 {[%emt 0:00:32]} 6. Be2 {[%emt 0:00:16]} a6 {[%emt 0:01:04]} 7. Qd3 {[%emt 0:00:49]} Nxd4 {[%emt 0:17:28]} 8. Qxd4 {[%emt 0:00:06]} b5 {[%emt 0:00:42]} 9. Bg5 {[%emt 0:09:25]} Bb7 {[%emt 0:16:10]} 10. Rd1 {[%emt 0:01:56]} b4 {[%emt 0:14:36]} 11. Nb1 {[%emt 0:07:53]} Nf6 {[%emt 0:05:51]} 12. Bxf6 {[%emt 0:00:44]} gxf6 {[%emt 0:00:09]} 13. O-O {[%emt 0:01:56]} Rg8 {[%emt 0:02:01]} 14. Bf3 {[%emt 0:00:52]} Bc6 {[%emt 0:06:23]} 15. Qxf6 {[%emt 0:02:59]} Bg7 {[%emt 0:06:05]} 16. Qg5 {[%emt 0:02:39]} Qe5 {[%emt 0:01:47]} 17. Qxe5 {[%emt 0:00:25]} Bxe5 {[%emt 0:01:02]} 18. c3 {[%emt 0:00:17]} Ke7 {[%emt 0:03:35]} 19. cxb4 {[%emt 0:00:31]} Bxb2 {[%emt 0:03:07]} 20. Rd2 {[%emt 0:04:07]} Be5 {[%emt 0:00:57]} 21. Rc2 {[%emt 0:01:06]} Rgb8 {[%emt 0:01:36]} 22. a3 {[%emt 0:00:43]} a5 {[%emt 0:02:17]} 23. Rc5 {[%emt 0:00:32]} Rb5 {[%emt 0:01:47]} 24. Rxb5 {[%emt 0:05:47]} Bxb5 {[%emt 0:00:52]} 25. Rc1 {[%emt 0:00:27]} axb4 {[%emt 0:00:57]} 26. axb4 {[%emt 0:00:03]} Ra1 {[%emt 0:05:38]} 27. Rd1 {[%emt 0:00:34]} Ba4 {[%emt 0:00:17]} 28. Rf1 {[%emt 0:00:09]} Bb5 {[%emt 0:00:26]} 29. Rd1 {[%emt 0:00:05]} Ba4 {[%emt 0:00:05]} 30. Rf1 {[%emt 0:00:03]} Ra2 {[%emt 0:00:34]} 31. h4 {[%emt 0:08:58]} Bd4 {[%emt 0:01:25]} 32. Kh2 {[%emt 0:04:14]} Rb2 {[%emt 0:02:19]} 33. Kg3 {[%emt 0:00:42]} Bb5 {[%emt 0:00:34]} 34. Rd1 {[%emt 0:00:36]} Bxf2+ {[%emt 0:00:18]} 35. Kh3 {[%emt 0:00:47]} Rxb4 {[%emt 0:00:15]} 36. Nc3 {[%emt 0:00:35]} Bc6 {[%emt 0:00:18]} 37. Rf1 {[%emt 0:05:12]} Bd4 {[%emt 0:00:53]} 38. Na2 {[%emt 0:05:19]} Ra4 {[%emt 0:01:38]} 39. Nc1 {[%emt 0:00:05]} Ra1 {[%emt 0:00:36]} 40. Re1 {[%emt 0:00:00]} Bc3 {[%emt 0:00:00]} 41. Rd1 {[%emt 0:04:41]} Ba4 {[%emt 0:12:24]} 42. Rg1 {[%emt 0:00:06]} Bd4 {[%emt 0:00:53]} 43. Re1 {[%emt 0:00:14]} Bc2 {[%emt 0:00:41]} 0-1

[Event "Mitropa Online Cup Open 2021"]
[Site "Hybrid"]
[Date "2021.05.04"]
[Round "4.3"]
[White "Droin, Augustin"]
[Black "Kriebel, Tadeas"]
[Result "0-1"]
[ECO "C84"]
[WhiteElo "2292"]
[BlackElo "2527"]
[Annotator "ChessBase"]
[PlyCount "110"]
[EventDate "2021.05.04"]
[EventType "team-tourn"]
[EventCountry "NET"]
[SourceTitle "playchess.com"]
[Source "ChessBase"]
[SourceQuality "1"]
[WhiteTeam "France"]
[BlackTeam "Czech Republic"]
[WhiteTeamCountry "FRA"]
[BlackTeamCountry "CZE"]
[TimeControl "40/5400+30:1800+30"]

1. e4 {[%emt 0:00:00]} e5 {[%emt 0:00:14]} 2. Nf3 {[%emt 0:00:07]} Nc6 {[%emt 0:00:06]} 3. Bb5 {[%emt 0:00:06]} a6 {[%emt 0:00:05]} 4. Ba4 {[%emt 0:00:05]} Nf6 {[%emt 0:00:05]} 5. O-O {[%emt 0:00:06]} Nxe4 {[%emt 0:00:16]} 6. d4 {[%emt 0:06:10]} Be7 {[%emt 0:00:14]} 7. Qe2 {[%emt 0:10:18]} b5 {[%emt 0:03:23]} 8. Qxe4 {[%emt 0:01:32]} d5 {[%emt 0:01:19]} 9. Qe2 {[%emt 0:01:46]} bxa4 {[%emt 0:16:25]} 10. dxe5 {[%emt 0:00:26]} O-O {[%emt 0:04:39]} 11. Rd1 {[%emt 0:03:13]} a5 {[%emt 0:28:17]} 12. c3 {[%emt 0:12:16]} Rb8 {[%emt 0:07:28]} 13. Bf4 {[%emt 0:06:18]} Bf5 {[%emt 0:02:28]} 14. Rd2 {[%emt 0:12:18]} Qc8 {[%emt 0:07:48]} 15. c4 {[%emt 0:08:20]} dxc4 {[%emt 0:04:12]} 16. Qxc4 {[%emt 0:00:33]} Qe6 {[%emt 0:00:11]} 17. Qxe6 {[%emt 0:05:03]} fxe6 {[%emt 0:00:05]} 18. Na3 {[%emt 0:03:16]} Be4 {[%emt 0:01:40]} 19. Bg3 {[%emt 0:01:26]} Bd5 {[%emt 0:00:47]} 20. Rc1 {[%emt 0:02:52]} Rxb2 {[%emt 0:01:01]} 21. Nc4 {[%emt 0:05:53]} Rxd2 {[%emt 0:01:35]} 22. Nfxd2 {[%emt 0:00:22]} Nd4 {[%emt 0:03:25]} 23. Kf1 {[%emt 0:01:47]} a3 {[%emt 0:02:26]} 24. f3 {[%emt 0:02:08]} Bb4 {[%emt 0:01:55]} 25. Nb1 {[%emt 0:01:08]} Nb5 {[%emt 0:01:04]} 26. Be1 {[%emt 0:00:29]} Rf4 {[%emt 0:04:01]} 27. Nxa5 {[%emt 0:04:31]} Bxa2 {[%emt 0:00:07]} 28. Bxb4 {[%emt 0:06:38]} Rxb4 {[%emt 0:00:05]} 29. Nxa3 {[%emt 0:00:06]} Nxa3 {[%emt 0:00:12]} 30. Rxc7 {[%emt 0:00:04]} Bd5 {[%emt 0:00:25]} 31. Nc6 {[%emt 0:01:16]} Bxc6 {[%emt 0:00:35]} 32. Rxc6 {[%emt 0:00:03]} Kf7 {[%emt 0:00:08]} 33. Kf2 {[%emt 0:00:38]} Rb2+ {[%emt 0:00:58]} 34. Kg3 {[%emt 0:00:07]} Rb7 {[%emt 0:00:04]} 35. f4 {[%emt 0:00:45]} Nb5 {[%emt 0:00:12]} 36. Kg4 {[%emt 0:01:54]} Nd4 {[%emt 0:00:16]} 37. Ra6 {[%emt 0:00:04]} Nf5 {[%emt 0:00:06]} 38. g3 {[%emt 0:00:27]} Ne7 {[%emt 0:01:10]} 39. Kh3 {[%emt 0:00:39]} Rc7 {[%emt 0:02:37]} 40. Kg4 {[%emt 0:00:00]} Rc2 {[%emt 0:00:00]} 41. Kh3 {[%emt 0:00:35]} Nc6 {[%emt 0:03:28]} 42. Kg4 {[%emt 0:02:32]} Nd4 {[%emt 0:01:01]} 43. Ra4 {[%emt 0:01:05]} Nf5 {[%emt 0:00:37]} 44. Ra7+ {[%emt 0:00:44]} Kg6 {[%emt 0:00:21]} 45. Ra6 {[%emt 0:00:48]} h5+ {[%emt 0:00:38]} 46. Kf3 {[%emt 0:00:42]} Rc3+ {[%emt 0:00:39]} 47. Kf2 {[%emt 0:00:35]} Nd4 {[%emt 0:00:52]} 48. Rb6 {[%emt 0:01:43]} Kf5 {[%emt 0:02:02]} 49. Rb7 {[%emt 0:00:36]} Ke4 {[%emt 0:00:18]} 50. h3 {[%emt 0:01:03]} Rc2+ {[%emt 0:00:23]} 51. Ke1 {[%emt 0:00:23]} Rg2 {[%emt 0:01:27]} 52. Rxg7 {[%emt 0:00:10]} Ke3 {[%emt 0:00:05]} 53. Kf1 {[%emt 0:00:14]} Rf2+ {[%emt 0:00:06]} 54. Ke1 {[%emt 0:00:07]} Rh2 {[%emt 0:00:04]} 55. Kf1 {[%emt 0:00:12]} Nf3 {[%emt 0:00:06]} 0-1

[Event "Mitropa Online Cup Open 2021"]
[Site "Hybrid"]
[Date "2021.05.04"]
[Round "4.4"]
[White "Bogner, Sebastian"]
[Black "Moroni, Luca Jr"]
[Result "1/2-1/2"]
[ECO "E04"]
[WhiteElo "2577"]
[BlackElo "2557"]
[Annotator "ChessBase"]
[PlyCount "85"]
[EventDate "2021.05.04"]
[EventType "team-tourn"]
[EventCountry "NET"]
[SourceTitle "playchess.com"]
[Source "ChessBase"]
[SourceQuality "1"]
[WhiteTeam "Switzerland"]
[BlackTeam "Italy"]
[WhiteTeamCountry "SUI"]
[BlackTeamCountry "ITA"]
[TimeControl "40/5400+30:1800+30"]

1. d4 {[%emt 0:00:00]} d5 {[%emt 0:00:04]} 2. Nf3 {[%emt 0:00:04]} Nf6 {[%emt 0:00:07]} 3. c4 {[%emt 0:00:04]} e6 {[%emt 0:00:03]} 4. g3 {[%emt 0:00:04]} dxc4 {[%emt 0:00:03]} 5. Bg2 {[%emt 0:00:03]} c5 {[%emt 0:00:01]} 6. O-O {[%emt 0:00:09]} Nc6 {[%emt 0:00:03]} 7. dxc5 {[%emt 0:00:38]} Qxd1 {[%emt 0:00:05]} 8. Rxd1 {[%emt 0:00:04]} Bxc5 {[%emt 0:00:02]} 9. Nbd2 {[%emt 0:00:04]} c3 {[%emt 0:00:03]} 10. bxc3 {[%emt 0:00:06]} O-O {[%emt 0:00:04]} 11. Nb3 {[%emt 0:00:12]} Be7 {[%emt 0:00:10]} 12. c4 {[%emt 0:00:07]} Bd7 {[%emt 0:01:03]} 13. Bb2 {[%emt 0:00:05]} Rfd8 {[%emt 0:00:57]} 14. Nfd4 {[%emt 0:00:07]} Rac8 {[%emt 0:00:42]} 15. Nb5 {[%emt 0:00:06]} b6 {[%emt 0:00:45]} 16. Nd6 {[%emt 0:00:05]} Rc7 {[%emt 0:00:48]} 17. Nb5 {[%emt 0:00:03]} Rcc8 {[%emt 0:00:06]} 18. Nd6 {[%emt 0:00:01]} Rc7 {[%emt 0:00:03]} 19. Ba3 {[%emt 0:00:02]} Ne5 {[%emt 0:07:24]} 20. Nb5 {[%emt 0:00:12]} Bxb5 {[%emt 0:00:10]} 21. Rxd8+ {[%emt 0:00:09]} Bxd8 {[%emt 0:00:02]} 22. cxb5 {[%emt 0:00:01]} Be7 {[%emt 0:02:48]} 23. Bxe7 {[%emt 0:00:06]} Rxe7 {[%emt 0:00:02]} 24. Rc1 {[%emt 0:00:04]} g5 {[%emt 0:00:06]} 25. Nd4 {[%emt 0:00:05]} Kg7 {[%emt 0:01:46]} 26. e3 {[%emt 0:00:37]} Nd3 {[%emt 0:05:17]} 27. Rc8 {[%emt 0:00:09]} Nc5 {[%emt 0:01:08]} 28. Kf1 {[%emt 0:09:08]} Nfe4 {[%emt 0:08:02]} 29. Bxe4 {[%emt 0:08:28]} Nxe4 {[%emt 0:00:05]} 30. f3 {[%emt 0:00:37]} Nd6 {[%emt 0:07:11]} 31. Rc6 {[%emt 0:11:14]} Nf5 {[%emt 0:01:55]} 32. Nxf5+ {[%emt 0:03:17]} exf5 {[%emt 0:00:08]} 33. Ke2 {[%emt 0:00:20]} f4 {[%emt 0:10:45]} 34. gxf4 {[%emt 0:00:56]} gxf4 {[%emt 0:00:05]} 35. e4 {[%emt 0:00:04]} f5 {[%emt 0:07:13]} 36. Rc4 {[%emt 0:02:45]} Kf6 {[%emt 0:05:09]} 37. Kd3 {[%emt 0:00:45]} Kg5 {[%emt 0:01:50]} 38. Rd4 {[%emt 0:03:30]} fxe4+ {[%emt 0:01:52]} 39. Rxe4 {[%emt 0:04:01]} Rd7+ {[%emt 0:00:19]} 40. Rd4 {[%emt 0:00:00]} Re7 {[%emt 0:00:00]} 41. Re4 {[%emt 0:18:57]} Rd7+ {[%emt 0:00:37]} 42. Rd4 {[%emt 0:04:53]} Re7 {[%emt 0:00:07]} 43. Re4 {[%emt 0:00:03]} 1/2-1/2

[Event "Mitropa Online Cup Open 2021"]
[Site "Hybrid"]
[Date "2021.05.04"]
[Round "4.4"]
[White "Basso, Pier Luigi"]
[Black "Studer, Noel"]
[Result "1/2-1/2"]
[ECO "E20"]
[WhiteElo "2552"]
[BlackElo "2579"]
[Annotator "ChessBase"]
[PlyCount "70"]
[EventDate "2021.05.04"]
[EventType "team-tourn"]
[EventCountry "NET"]
[SourceTitle "playchess.com"]
[Source "ChessBase"]
[SourceQuality "1"]
[WhiteTeam "Italy"]
[BlackTeam "Switzerland"]
[WhiteTeamCountry "ITA"]
[BlackTeamCountry "SUI"]
[TimeControl "40/5400+30:1800+30"]

1. d4 {[%emt 0:00:00]} Nf6 {[%emt 0:00:05]} 2. c4 {[%emt 0:00:55]} e6 {[%emt 0:00:03]} 3. Nc3 {[%emt 0:01:10]} Bb4 {[%emt 0:00:07]} 4. f3 {[%emt 0:00:57]} c5 {[%emt 0:00:09]} 5. d5 {[%emt 0:00:29]} O-O {[%emt 0:00:13]} 6. e4 {[%emt 0:00:17]} d6 {[%emt 0:00:14]} 7. Nge2 {[%emt 0:00:37]} b5 {[%emt 0:00:49]} 8. Nf4 {[%emt 0:01:05]} exd5 {[%emt 0:00:29]} 9. Nfxd5 {[%emt 0:00:31]} Nxd5 {[%emt 0:00:03]} 10. Qxd5 {[%emt 0:00:21]} Qb6 {[%emt 0:00:06]} 11. cxb5 {[%emt 0:00:53]} Bb7 {[%emt 0:01:02]} 12. Qc4 {[%emt 0:00:27]} Re8 {[%emt 0:04:45]} 13. Kf2 {[%emt 0:06:56]} Nd7 {[%emt 0:07:25]} 14. Be3 {[%emt 0:08:56]} Ne5 {[%emt 0:07:28]} 15. Qxb4 {[%emt 0:02:59]} cxb4 {[%emt 0:00:05]} 16. Bxb6 {[%emt 0:00:05]} axb6 {[%emt 0:00:16]} 17. Nd1 {[%emt 0:05:18]} d5 {[%emt 0:01:20]} 18. exd5 {[%emt 0:05:51]} Bxd5 {[%emt 0:00:03]} 19. Ne3 {[%emt 0:05:50]} Bxa2 {[%emt 0:04:56]} 20. Be2 {[%emt 0:05:08]} Bb3 {[%emt 0:06:45]} 21. f4 {[%emt 0:09:12]} Nd7 {[%emt 0:05:53]} 22. Bc4 {[%emt 0:07:36]} Bxc4 {[%emt 0:01:58]} 23. Rxa8 {[%emt 0:01:34]} Rxa8 {[%emt 0:00:04]} 24. Nxc4 {[%emt 0:00:03]} Rc8 {[%emt 0:13:55]} 25. b3 {[%emt 0:09:20]} Nc5 {[%emt 0:03:02]} 26. Nxb6 {[%emt 0:02:16]} Rb8 {[%emt 0:00:04]} 27. Na4 {[%emt 0:07:15]} Rxb5 {[%emt 0:00:53]} 28. Nxc5 {[%emt 0:00:14]} Rxc5 {[%emt 0:00:02]} 29. Rd1 {[%emt 0:00:06]} f5 {[%emt 0:02:12]} 30. Rd8+ {[%emt 0:01:07]} Kf7 {[%emt 0:00:04]} 31. Rb8 {[%emt 0:00:08]} Rc2+ {[%emt 0:00:05]} 32. Kf1 {[%emt 0:00:05]} Rc1+ {[%emt 0:00:02]} 33. Kf2 {[%emt 0:00:03]} Rc2+ {[%emt 0:00:01]} 34. Kf1 {[%emt 0:00:04]} Rc1+ {[%emt 0:00:02]} 35. Kf2 {[%emt 0:00:03]} Rc2+ {[%emt 0:00:01]} 1/2-1/2

[Event "Mitropa Online Cup Open 2021"]
[Site "Hybrid"]
[Date "2021.05.04"]
[Round "4.4"]
[White "Lodici, Lorenzo"]
[Black "Baenziger, Fabian"]
[Result "1-0"]
[ECO "B23"]
[WhiteElo "2483"]
[BlackElo "2400"]
[Annotator "ChessBase"]
[PlyCount "83"]
[EventDate "2021.05.04"]
[EventType "team-tourn"]
[EventCountry "NET"]
[SourceTitle "playchess.com"]
[Source "ChessBase"]
[SourceQuality "1"]
[WhiteTeam "Italy"]
[BlackTeam "Switzerland"]
[WhiteTeamCountry "ITA"]
[BlackTeamCountry "SUI"]
[TimeControl "40/5400+30:1800+30"]

1. e4 {[%emt 0:00:00]} c5 {[%emt 0:00:09]} 2. Nc3 {[%emt 0:00:05]} d6 {[%emt 0:00:05]} 3. d4 {[%emt 0:00:32]} cxd4 {[%emt 0:00:05]} 4. Qxd4 {[%emt 0:00:03]} Nc6 {[%emt 0:00:06]} 5. Qd2 {[%emt 0:00:04]} g6 {[%emt 0:00:04]} 6. b3 {[%emt 0:00:04]} Bh6 {[%emt 0:00:07]} 7. f4 {[%emt 0:00:04]} f5 {[%emt 0:00:21]} 8. Bb2 {[%emt 0:00:10]} Nf6 {[%emt 0:00:06]} 9. Bd3 {[%emt 0:00:05]} Qa5 {[%emt 0:00:52]} 10. exf5 {[%emt 0:00:06]} Bxf5 {[%emt 0:00:04]} 11. Nge2 {[%emt 0:00:04]} O-O-O {[%emt 0:05:24]} 12. a3 {[%emt 0:00:31]} Bxd3 {[%emt 0:07:34]} 13. Qxd3 {[%emt 0:00:34]} Qf5 {[%emt 0:00:06]} 14. Rd1 {[%emt 0:00:09]} Rhf8 {[%emt 0:13:58]} 15. O-O {[%emt 0:02:43]} Qxd3 {[%emt 0:15:12]} 16. Rxd3 {[%emt 0:01:15]} Bg7 {[%emt 0:00:11]} 17. Nd5 {[%emt 0:04:14]} Rf7 {[%emt 0:08:57]} 18. Ne3 {[%emt 0:03:11]} Nh5 {[%emt 0:02:18]} 19. Bxg7 {[%emt 0:00:07]} Nxg7 {[%emt 0:00:08]} 20. c4 {[%emt 0:01:22]} Ne6 {[%emt 0:04:02]} 21. b4 {[%emt 0:01:55]} Rdf8 {[%emt 0:01:13]} 22. g3 {[%emt 0:03:25]} h5 {[%emt 0:09:07]} 23. h4 {[%emt 0:05:19]} Ng7 {[%emt 0:04:56]} 24. Rc1 {[%emt 0:02:25]} Nf5 {[%emt 0:02:10]} 25. c5 {[%emt 0:01:48]} Nxe3 {[%emt 0:02:14]} 26. Rxe3 {[%emt 0:01:00]} a6 {[%emt 0:05:02]} 27. cxd6 {[%emt 0:06:19]} exd6 {[%emt 0:00:03]} 28. Nc3 {[%emt 0:00:14]} Kd7 {[%emt 0:02:15]} 29. Nd5 {[%emt 0:05:18]} Re8 {[%emt 0:06:19]} 30. Rd3 {[%emt 0:01:26]} Re2 {[%emt 0:05:43]} 31. Rcd1 {[%emt 0:00:46]} Ke6 {[%emt 0:00:34]} 32. Nc3 {[%emt 0:08:14]} Rc2 {[%emt 0:00:13]} 33. Rxd6+ {[%emt 0:00:28]} Kf5 {[%emt 0:00:03]} 34. R1d5+ {[%emt 0:01:23]} Kg4 {[%emt 0:00:02]} 35. Ne4 {[%emt 0:05:07]} Re7 {[%emt 0:01:16]} 36. Rxg6+ {[%emt 0:03:31]} Kf3 {[%emt 0:00:04]} 37. Nd2+ {[%emt 0:00:40]} Ke2 {[%emt 0:00:13]} 38. Rgd6 {[%emt 0:01:07]} Re3 {[%emt 0:04:23]} 39. Nf1 {[%emt 0:02:53]} Rxa3 {[%emt 0:00:04]} 40. f5 {[%emt 0:00:00]} Kf3 {[%emt 0:00:00]} 41. f6 {[%emt 0:06:32]} Ra1 {[%emt 0:02:40]} 42. Rd3+ {[%emt 0:00:54]} 1-0